[Event "1st Bangalore GM-Open-A 2024"]
[Site "Bangalore"]
[Date "2024.01.21"]
[Round "5.6"]
[White "Ritviz, Parab"]
[Black "Mitrabha, Guha"]
[Result "0-1"]
[ECO "C60"]
[WhiteElo "2391"]
[BlackElo "2504"]
[Annotator "TA"]
[PlyCount "180"]
[EventDate "2024.01.20"]
[EventType "swiss"]
[EventCountry "IND"]
[SourceTitle "playchess.com"]
[Source "ChessBase"]
[SourceQuality "1"]
[TimeControl "5400+30"]

{[%evp 11,180,14,24,26,14,13,29,10,10,0,9,-3,10,6,-6,-10,-8,-57,-58,-58,-56,-69,-51,-101,-108,-97,-56,-101,-18,-18,-16,-16,-8,-29,0,0,0,0,0,-10,0,0,10,0,0,0,0,0,37,5,21,8,16,0,15,8,17,9,18,0,6,0,0,0,0,0,0,0,0,0,18,18,35,0,0,-7,-8,-17,-16,-17,-7,-10,-14,-9,-9,-27,5,-36,-8,-10,-8,-66,0,0,0,-58,-11,-102,-112,-138,-135,-152,-147,-144,-141,-148,-144,-137,-20,-17,0,-129,-129,-125,-125,-125,-127,-132,-147,-141,-143,-146,-137,-154,-154,-147,-138,-158,-158,-166,-166,-172,-167,-159,-159,-159,-159,-159,-160,-199,-199,-195,-199,-243,-195,-269,-259,-372,-367,-532,-532,-471,-509,-625,-588,-599,-585,-833,-789,-934,-629,-593,-633,-633,-595,-631,-621,-568,-591,-654,-654]} 1. e4 {[%emt 0:01:11]} e5 {[%emt 0:00:30]} 2. Nf3 {[%emt 0:00:10][%cal Bg1f3,Bf3d4,Bd4f5][%mdl 32]} Nc6 {[%emt 0:00:08]} 3. Bb5 {[%emt 0:00:53]} Nge7 {[%emt 0:00:10]} 4. O-O {[%emt 0:01:26]} Ng6 {[%emt 0:00:09]} 5. d4 {[%emt 0:10:23]} exd4 {[%emt 0:00:42]} 6. Nxd4 {[%emt 0:00:17]} Bc5 {[%emt 0:00:06]} 7. Nf5 {[%emt 0:05:19] C60: Ruy Lopez: Unusual Black 3rd moves and 3...g6.} O-O {[%emt 0:00:14]} 8. Nc3 {[%emt 0:22:15]} (8. Be3 {simplifies} Bxe3 9. Nxe3 d6 10. f4) 8... a6 {[%emt 0:01:44]} 9. Bc4 {[%emt 0:05:43] [#] With the idea Qh5. White has an edge.} Nge5 $146 {[%emt 0:05:49]} ({Predecessor:} 9... d6 10. Qh5 Kh8 11. Bb3 Nd4 12. Bg5 f6 13. Be3 Nxb3 14. axb3 Bxe3 15. Nxe3 Ne7 {½-½ Battulga,N (2411)-Stevic,H (2606) Olympiad-41 Tromsoe 2014 (4.2)}) 10. Bd5 {[%emt 0:05:06]} d6 {[%emt 0:01:24]} 11. Kh1 {[%emt 0:04:45]} Re8 {[%emt 0:03:36]} 12. Qh5 {[%emt 0:08:18]} Qf6 {[%emt 0:02:12]} 13. f4 {[%emt 0:01:38]} Qg6 {[%emt 0:05:43]} 14. Qh4 {[%emt 0:05:26]} (14. Qxg6 $11 {deserves consideration.} Nxg6 15. Bd2) 14... Bxf5 $15 {[%emt 0:00:45]} 15. exf5 {[%emt 0:02:09]} Qg4 $1 {[%emt 0:03:20]} ({Of course not} 15... Qxf5 16. Be4 Ng6 17. Qxh7+ Kxh7 18. Bxf5 $11) 16. Qg5 {[%emt 0:07:37]} h6 {[%emt 0:02:46] Dancing on a razor blade.} 17. h3 {[%emt 0:02:24]} hxg5 $17 {[%emt 0:03:02]} 18. hxg4 {[%emt 0:00:04]} gxf4 {[%emt 0:00:02]} 19. Rxf4 {[%emt 0:02:57]} Nd7 {[%emt 0:17:57]} ({Better is} 19... Rab8 $17 {...Nd4 is the strong threat.} 20. Rb1 Nd4) 20. Bd2 $11 {[%emt 0:04:40]} Nf6 {[%emt 0:01:11]} 21. Bf3 {[%emt 0:01:56]} Ne5 {[%emt 0:08:55] next ...g5 is good for Black.} 22. Be2 {[%emt 0:00:41]} g5 {[%emt 0:01:49]} 23. fxg6 {[%emt 0:00:58]} Kg7 {[%emt 0:00:02][%cal Re8h8]} 24. g3 {[%emt 0:00:10]} Nxg6 {[%emt 0:00:29] A dynamic duo of knights.} 25. Rf5 {[%emt 0:00:08]} Bd4 {[%emt 0:00:35]} 26. Raf1 {[%emt 0:01:23]} Re7 {[%emt 0:01:44]} 27. Bf3 {[%emt 0:01:22]} (27. g5 {with more complications.} Nd7 28. Bd3 Nc5 29. Nd5) 27... c6 {[%emt 0:00:35]} 28. Ne2 {[%emt 0:02:22]} Rh8+ {[%emt 0:10:47]} 29. Kg2 {[%emt 0:00:02]} Be5 {[%emt 0:00:27]} (29... Bxb2 $5 {[%cal Rg6e5]} 30. c3 Rc7 $11) 30. c3 {[%emt 0:02:42]} (30. b3 {keeps more tension.} Re6 31. g5 Ne8 32. Bg4) 30... Ne8 {[%emt 0:05:06]} 31. Rh5 {[%emt 0:00:41]} (31. Bg5 {is more complex.} f6 32. Bd2 d5 33. Rh5) 31... Kg8 {[%emt 0:01:29]} 32. Rfh1 {[%emt 0:00:32]} Ng7 {[%emt 0:00:47]} 33. Rxh8+ {[%emt 0:00:29]} Nxh8 {[%emt 0:00:02]} 34. Nf4 {[%emt 0:00:28]} d5 {[%emt 0:01:43] Against Be4} 35. Nh5 {[%emt 0:00:48]} Ng6 {[%emt 0:00:47]} 36. Bg5 {[%emt 0:00:20]} Re6 {[%emt 0:01:33]} 37. Nf4 {[%emt 0:00:02]} Re8 {[%emt 0:00:40]} 38. Nh5 {[%emt 0:00:54]} Re6 {[%emt 0:00:10]} 39. Nf4 {[%emt 0:00:06]} Rd6 {[%emt 0:00:23]} 40. Nd3 {[%emt 0:00:59]} Bf6 {[%emt 0:00:20]} 41. Bf4 {[%emt 0:00:22]} Rd8 {[%emt 0:01:09]} 42. Re1 {[%emt 0:00:39]} (42. g5 $5 {[%cal Rg5f6]} Be7 43. Bg4 $14) 42... Ne6 {[%emt 0:00:09]} 43. Bd2 {[%emt 0:00:43]} Bg5 {[%emt 0:00:39]} 44. Rxe6 {[%emt 0:00:26][%mdl 64] [#] Remove Defender} Bxd2 {[%emt 0:00:02]} 45. Re2 {[%emt 0:00:02]} Bg5 {[%emt 0:00:01]} 46. Nc5 {[%emt 0:00:35]} Rb8 {[%emt 0:00:13]} 47. Nd7 {[%emt 0:00:20]} Ra8 {[%emt 0:00:01]} 48. Nc5 {[%emt 0:01:05]} Be7 {[%emt 0:00:01]} 49. Nd3 {[%emt 0:00:31]} (49. Nxb7 $5 a5 50. c4 $11) 49... Bd6 {[%emt 0:00:01]} 50. g5 $1 {[%emt 0:00:30]} Kg7 {[%emt 0:00:13]} 51. Bg4 {[%emt 0:00:13]} (51. Bh5 $11) 51... Nf8 {[%emt 0:00:36]} (51... Be7 $1 $15) 52. Nf4 {[%emt 0:00:13]} Nh7 {[%emt 0:00:21]} 53. Nh5+ {[%emt 0:00:57]} (53. g6 $11 fxg6 54. Re6 Bxf4 55. Re7+ Kh6 56. gxf4) 53... Kf8 {[%emt 0:01:17]} (53... Kg6 $15 54. Rf2 Re8) 54. Rf2 {[%emt 0:00:36]} (54. g6 $11 fxg6 55. Rf2+ (55. Nf4 Bxf4 56. gxf4 Nf6 $17) 55... Ke7 56. Re2+ Kd8 57. Nf4 Bxf4 58. gxf4) 54... Nxg5 $17 {[%emt 0:00:09]} 55. Nf6 {[%emt 0:00:31]} Ke7 {[%emt 0:01:54]} 56. Bh5 {[%emt 0:00:29]} Rh8 {[%emt 0:00:26]} 57. Rf5 {[%emt 0:00:26] Inhibits Be5.} Ne6 {[%emt 0:01:22]} 58. Ng4 {[%emt 0:00:35]} Rh7 {[%emt 0:00:28]} 59. Ne3 {[%emt 0:00:28]} Rg7 {[%emt 0:01:22]} (59... Bf4 $17 60. gxf4 Rxh5) 60. Rf3 $11 {[%emt 0:00:23]} Rh7 {[%emt 0:00:36]} (60... Kd7 $5 {[%cal Re6f4]} 61. Rxf7+ Rxf7 62. Bxf7 Be5 $15) 61. Nf5+ {[%emt 0:00:15]} (61. Rf5 $1 $11 {was the only way to keep the balance.}) 61... Kd7 $17 {[%emt 0:00:11] White is on the road to losing.} 62. Bg4 {[%emt 0:00:50]} Kc7 {[%emt 0:00:54]} 63. Nd4 {[%emt 0:00:34]} Ng5 {[%emt 0:00:09]} 64. Re3 {[%emt 0:00:30]} Rh8 {[%emt 0:00:16]} 65. Nb3 {[%emt 0:00:30]} b5 {[%emt 0:01:03]} 66. Bf5 {[%emt 0:00:16]} Rg8 {[%emt 0:00:41]} 67. Nd2 {[%emt 0:00:14]} f6 {[%emt 0:01:56]} 68. Nf3 {[%emt 0:00:50]} Nf7 {[%emt 0:01:04]} 69. Nd4 {[%emt 0:00:22]} Ne5 {[%emt 0:01:25]} 70. b3 {[%emt 0:00:05] Dodges Nc4} a5 {[%emt 0:01:16]} 71. Be6 {[%emt 0:01:11]} Re8 {[%emt 0:00:39] Threatens to win with ...Bc5.} 72. Re2 {[%emt 0:00:19]} Bc5 {[%emt 0:00:49] aiming for ...Bxd4.} 73. Bf5 {[%emt 0:00:22]} Kb6 {[%emt 0:00:40]} 74. Nf3 {[%emt 0:00:31]} Bd6 {[%emt 0:00:11]} 75. c4 {[%emt 0:00:51]} dxc4 {[%emt 0:00:45]} 76. bxc4 {[%emt 0:00:04]} bxc4 {[%emt 0:00:23][%cal Bb5c4,Bc4c3][%mdl 32]} 77. Nd2 {[%emt 0:00:51]} Rd8 {[%emt 0:01:17]} 78. Be6 {[%emt 0:00:26]} (78. Ne4 $142) 78... c3 $19 {[%emt 0:00:20]} 79. Nb1 {[%emt 0:00:38]} (79. Nc4+ $142 Nxc4 80. Bxc4) 79... Bb4 {[%emt 0:01:29]} 80. a3 {[%emt 0:00:02]} (80. Bb3 $142) 80... Rd1 {[%emt 0:00:15] Black is clearly winning.} 81. Bf5 {[%emt 0:00:11] [#]} c5 $1 {[%emt 0:00:32][%cal Oe5d3,Bc6c5,Bc5b4][%mdl 32]} 82. axb4 {[%emt 0:00:05]} (82. Bc2 Rc1) 82... cxb4 {[%emt 0:00:05]} 83. g4 {[%emt 0:01:30]} Nc4 {[%emt 0:00:44]} 84. Kg3 {[%emt 0:00:39]} Kc5 {[%emt 0:00:45]} 85. Bc2 {[%emt 0:00:22]} Rg1+ {[%emt 0:00:14]} 86. Kf4 {[%emt 0:00:22]} Rf1+ {[%emt 0:00:32]} 87. Ke4 {[%emt 0:00:10]} Nd6+ {[%emt 0:00:40]} 88. Ke3 {[%emt 0:00:11]} Nb5 {[%emt 0:00:09] White must now prevent ...Nd4.} 89. Rh2 {[%emt 0:00:23]} Nd4 {[%emt 0:03:28] ...Nxc2+ would be deadly.} 90. Nxc3 {[%emt 0:00:31]} Rf3+ {[%emt 0:00:28] Weighted Error Value: White=0.16 (very precise) /Black=0.12 (very precise)} 0-1

[Event "1st Bangalore GM-Open-A 2024"]
[Site "Bangalore"]
[Date "2024.01.21"]
[Round "5.7"]
[White "Fedorov, Alexei"]
[Black "Dere Pushkar"]
[Result "1/2-1/2"]
[ECO "B12"]
[WhiteElo "2457"]
[BlackElo "2191"]
[Annotator "RC"]
[PlyCount "108"]
[EventDate "2024.01.20"]
[EventType "swiss"]
[EventCountry "IND"]
[SourceTitle "playchess.com"]
[Source "ChessBase"]
[SourceQuality "1"]
[TimeControl "5400+30"]

1. e4 {[%emt 0:00:03]} c6 {[%emt 0:00:13]} 2. d4 {[%emt 0:00:07]} d5 {[%emt 0:00:05]} 3. e5 {[%emt 0:00:04]} c5 {[%emt 0:00:06]} 4. dxc5 {[%emt 0:00:09]} e6 {[%emt 0:00:09]} 5. a3 {[%emt 0:00:36]} Bxc5 {[%emt 0:00:10]} 6. Nf3 {[%emt 0:00:05]} Nd7 {[%emt 0:00:37]} 7. b4 {[%emt 0:00:20]} Be7 {[%emt 0:00:08]} 8. Nbd2 {[%emt 0:00:06]} a5 {[%emt 0:03:15]} 9. Rb1 {[%emt 0:00:08]} axb4 {[%emt 0:09:01]} 10. axb4 {[%emt 0:00:05]} f6 {[%emt 0:01:16]} 11. Bb5 {[%emt 0:00:10]} Nh6 {[%emt 0:02:59]} 12. exf6 {[%emt 0:15:56]} Bxf6 {[%emt 0:02:04]} 13. O-O {[%emt 0:00:52]} O-O {[%emt 0:03:42]} 14. c4 {[%emt 0:00:58]} Nf7 {[%emt 0:10:24]} 15. Qe2 {[%emt 0:07:01]} Nb6 {[%emt 0:15:34]} 16. Bb2 {[%emt 0:07:23]} Ra2 {[%emt 0:02:52]} 17. Bxf6 {[%emt 0:01:26]} Qxf6 {[%emt 0:00:09]} 18. Qe3 {[%emt 0:05:16]} Nxc4 {[%emt 0:06:37]} 19. Nxc4 {[%emt 0:03:45]} dxc4 {[%emt 0:00:10]} 20. Bxc4 {[%emt 0:00:39]} Rc2 {[%emt 0:01:16]} 21. Bd3 {[%emt 0:06:48]} Rc3 {[%emt 0:04:04]} 22. Rfc1 {[%emt 0:07:02]} Rxc1+ {[%emt 0:02:00]} 23. Rxc1 {[%emt 0:00:11]} e5 {[%emt 0:03:06]} 24. Be4 {[%emt 0:06:59]} Rd8 {[%emt 0:05:22]} 25. h3 {[%emt 0:01:19]} Qf4 {[%emt 0:02:09]} 26. Bd5 {[%emt 0:06:13]} Rxd5 {[%emt 0:04:41]} 27. Rxc8+ {[%emt 0:00:07]} Rd8 {[%emt 0:00:22]} 28. Qc5 {[%emt 0:06:24]} Qf6 {[%emt 0:11:19]} 29. Qc7 {[%emt 0:02:31]} e4 {[%emt 0:00:39]} 30. Ne5 {[%emt 0:02:41]} Rxc8 {[%emt 0:02:02]} 31. Qxc8+ {[%emt 0:00:05]} Nd8 {[%emt 0:02:43]} 32. Ng4 {[%emt 0:05:58]} Qd6 {[%emt 0:01:03]} 33. g3 {[%emt 0:02:09]} h6 {[%emt 0:00:52]} 34. b5 {[%emt 0:00:37]} Kh7 {[%emt 0:00:42]} 35. Qf5+ {[%emt 0:02:20]} Qg6 {[%emt 0:00:03]} 36. Qd7 {[%emt 0:00:27]} Ne6 {[%emt 0:00:20]} 37. Qxb7 {[%emt 0:03:31]} Ng5 {[%emt 0:00:03]} 38. Qd7 {[%emt 0:02:30]} Nxh3+ {[%emt 0:01:00]} 39. Kg2 {[%emt 0:01:44]} Ng5 {[%emt 0:00:07]} 40. Ne3 {[%emt 0:00:42]} Nf3 {[%emt 0:01:21]} 41. Qg4 {[%emt 0:01:00]} Ne5 {[%emt 0:01:56]} 42. Qf5 {[%emt 0:01:23]} Qxf5 {[%emt 0:01:02]} 43. Nxf5 {[%emt 0:00:04]} Nc4 {[%emt 0:00:22]} 44. Kh3 {[%emt 0:00:48]} Kg6 {[%emt 0:00:16]} 45. Kg4 {[%emt 0:01:20]} Ne5+ {[%emt 0:00:47]} 46. Kf4 {[%emt 0:00:04]} Nd3+ {[%emt 0:00:02]} 47. Kxe4 {[%emt 0:00:08]} Nxf2+ {[%emt 0:00:03]} 48. Kd4 {[%emt 0:01:13]} Kxf5 {[%emt 0:00:06]} 49. b6 {[%emt 0:00:05]} Ng4 {[%emt 0:00:03]} 50. b7 {[%emt 0:00:14]} Ne5 {[%emt 0:00:05]} 51. Kd5 {[%emt 0:00:45]} Nd7 {[%emt 0:00:05]} 52. Kd6 {[%emt 0:00:04]} Nb8 {[%emt 0:00:07]} 53. Kc7 {[%emt 0:00:04]} Na6+ {[%emt 0:00:04]} 54. Kb6 {[%emt 0:00:04]} Nb8 {[%emt 0:00:02]} 1/2-1/2

[Event "1st Bangalore GM-Open-A 2024"]
[Site "Bangalore"]
[Date "2024.01.21"]
[Round "5.8"]
[White "Short, Nigel D"]
[Black "Subhayan Kundu"]
[Result "1-0"]
[ECO "C78"]
[WhiteElo "2592"]
[BlackElo "2385"]
[Annotator "TA"]
[PlyCount "105"]
[EventDate "2024.01.20"]
[EventType "swiss"]
[EventCountry "IND"]
[SourceTitle "playchess.com"]
[Source "ChessBase"]
[SourceQuality "1"]
[TimeControl "5400+30"]

{[%evp 21,105,0,0,0,16,6,25,15,42,36,41,19,53,14,12,0,0,0,0,0,0,0,0,0,128,117,109,116,239,236,231,226,220,206,242,147,156,132,135,120,122,114,119,103,113,122,120,116,197,186,192,192,175,170,313,339,331,318,337,127,277,135,449,323,812,368,280,189,29964,29966,5359,6199,6420,6303,6107,5367,29977,29979,29981,29982,29982,29983,29989,29990,29991,29992]} 1. e4 {[%emt 0:00:04]} e5 {[%emt 0:02:03]} 2. Nf3 {[%emt 0:00:08]} Nc6 {[%emt 0:00:13]} 3. Bb5 {[%emt 0:00:08]} a6 {[%emt 0:00:59]} 4. Ba4 {[%emt 0:00:07]} Nf6 {[%emt 0:00:21]} 5. O-O {[%emt 0:00:09]} b5 {[%emt 0:00:42]} 6. Bb3 {[%emt 0:00:08]} Bc5 {[%emt 0:00:08]} 7. c3 {[%emt 0:00:43]} d6 {[%emt 0:00:13]} 8. d4 {[%emt 0:00:19]} Bb6 {[%emt 0:00:12]} 9. Be3 {[%emt 0:00:11]} O-O {[%emt 0:05:48]} 10. Nbd2 {[%emt 0:02:49]} h6 {[%emt 0:12:04]} 11. h3 {[%emt 0:02:19]} Re8 {[%emt 0:00:48]} 12. Re1 {[%emt 0:01:23] C78: Ruy Lopez: Archangelsk and Möller Defences.} Rb8 {[%emt 0:05:33]} 13. a3 {[%emt 0:01:34]} exd4 {[%emt 0:13:57]} 14. cxd4 {[%emt 0:02:45][%cal Oe4e5] White has an edge.} d5 {[%emt 0:00:08]} (14... Nxe4 15. Nxe4 Rxe4 16. Qc2 Rxe3 17. fxe3 $16) 15. e5 {[%emt 0:06:05]} Ne4 {[%emt 0:00:22]} 16. Bc2 {[%emt 0:15:26]} Bf5 {[%emt 0:04:35] [#]} 17. Rc1 $146 {[%emt 0:00:15]} ({Predecessor:} 17. Nb3 f6 18. Nh4 Be6 19. f3 fxe5 20. Ng6 exd4 21. Nxd4 Nxd4 22. Bxd4 Bxd4+ 23. Qxd4 {1-0 Stearman,J (2386)-Krishnakumar,S (2312) Hollywood Classic 3rd 2022 (9)}) 17... Na5 $1 {[%emt 0:03:18]} 18. Bxh6 {[%emt 0:02:27]} gxh6 {[%emt 0:01:47]} 19. Nxe4 {[%emt 0:00:13]} dxe4 {[%emt 0:00:27]} 20. Bxe4 {[%emt 0:00:06]} Bg6 {[%emt 0:06:54]} 21. Qc2 {[%emt 0:04:30]} Kg7 {[%emt 0:00:34]} (21... Bxd4 $2 22. Bxg6 (22. Qxc7 $2 Bxb2 23. Bxg6 fxg6 $19) 22... Re7 23. Bh7+ Kh8 24. b4 $18) 22. d5 {[%emt 0:05:50]} Nc4 {[%emt 0:06:13]} (22... Bh5 $11) 23. Bxg6 $1 $16 {[%emt 0:07:00]} fxg6 {[%emt 0:00:00] [#]} 24. b3 $1 {[%emt 0:00:58]} Ne3 {[%emt 0:02:03]} 25. fxe3 $18 {[%emt 0:04:38]} Qxd5 {[%emt 0:00:04]} 26. Red1 {[%emt 0:13:00]} Qf7 {[%emt 0:08:39]} 27. Qe4 {[%emt 0:00:20]} Re7 {[%emt 0:02:29]} 28. Nh4 {[%emt 0:05:18] Dodges Qf5. aiming for Rc6.} Re6 {[%emt 0:01:10]} (28... Rf8 $2 29. Rf1 Qe8 30. Rxf8 Kxf8 31. Nxg6+ $18 (31. Qxg6 $2 Bxe3+ 32. Kh2 Bf4+ 33. Kg1 Bxc1 $19) (31. Qxg6 $2 Bxe3+ 32. Kh2 Bf4+ 33. Kg1 Be3+ 34. Kh2 Bf4+ 35. Kg1 Bxc1 $19)) 29. Kh1 {[%emt 0:06:15]} Rf8 {[%emt 0:05:10]} 30. Rc6 {[%emt 0:01:12] White is more active.} Rfe8 {[%emt 0:00:43]} 31. Rxe6 {[%emt 0:00:47]} Rxe6 {[%emt 0:02:44]} 32. Nf3 {[%emt 0:02:31]} Re7 {[%emt 0:01:05]} 33. Rd3 {[%emt 0:01:09]} Qe6 {[%emt 0:00:58]} 34. g4 {[%emt 0:02:46]} Bc5 {[%emt 0:04:09]} (34... c5 $16) 35. b4 {[%emt 0:01:14]} Bb6 {[%emt 0:00:04]} 36. Rc3 {[%emt 0:01:44] Dodges Qc4. Threatens to win with Rc6.} Qf7 {[%emt 0:01:23]} 37. Kg2 {[%emt 0:00:42]} Qa2+ {[%emt 0:00:24] [#]} (37... Qe8 {was necessary.} 38. Kf1 Re6) 38. Kg3 $1 {[%emt 0:00:25]} (38. Rc2 Qxa3 39. Kf2 (39. Qf4 Rf7 $11) 39... a5 $16) 38... Qf7 {[%emt 0:00:33]} 39. Rc6 {[%emt 0:07:59]} Re6 {[%emt 0:03:28]} 40. Rc2 {[%emt 0:00:04]} (40. g5 $18 {gxh6+ would kill now.} Qe7 41. gxh6+ Kxh6 42. Rxe6 Qxe6 43. Ng5) 40... Re7 {[%emt 0:00:45]} (40... Qe8 $16 41. h4 a5) 41. Kg2 {[%emt 0:01:38]} (41. h4 $18 {and White stays clearly on top.}) 41... Qb3 $2 {[%emt 0:02:27][%mdl 8192]} (41... Qe8 $16 42. h4 Re6) 42. Nd4 {[%emt 0:00:55]} ({Not} 42. Qc6 Rf7 $14) 42... Qxa3 {[%emt 0:02:15]} (42... Bxd4 43. exd4 Qxa3) 43. Rf2 {[%emt 0:02:12]} (43. Rc6 Qa2+ 44. Kg3 Qf7 $18) (43. e6 $142 Kh7 44. Nf5 gxf5 45. Qxf5+ Kg8 46. Rf2 (46. Qg6+ Rg7 $11)) 43... Bxd4 {[%emt 0:00:43]} 44. exd4 {[%emt 0:00:24] Hoping for e6.} ({Less strong is} 44. Qxd4 Kh7 $16) 44... Rf7 $2 {[%emt 0:01:11]} (44... a5 $18) 45. Rxf7+ {[%emt 0:01:11]} Kxf7 {[%emt 0:00:01]} 46. Qf3+ {[%emt 0:00:34]} Qxf3+ {[%emt 0:00:22]} 47. Kxf3 {[%emt 0:00:04][%mdl 4096] Endgame KP-KP} Ke6 {[%emt 0:02:02]} 48. Ke4 {[%emt 0:00:05]} c6 {[%emt 0:00:15]} 49. h4 {[%emt 0:00:06][%cal Bh3h4,Bh4h5][%mdl 32] White mates.} g5 {[%emt 0:00:53]} 50. h5 {[%emt 0:00:04]} Kd7 {[%emt 0:01:07]} 51. d5 {[%emt 0:00:08]} cxd5+ {[%emt 0:00:26]} 52. Kxd5 {[%emt 0:00:06]} Ke7 {[%emt 0:00:17]} 53. e6 {[%emt 0:00:10] Weighted Error Value: White=0.33/Black=0.59} 1-0

[Event "1st Bangalore GM-Open-A 2024"]
[Site "Bangalore"]
[Date "2024.01.21"]
[Round "5.9"]
[White "Chanda, Sandipan"]
[Black "Ayush Sharma"]
[Result "1/2-1/2"]
[ECO "E46"]
[WhiteElo "2486"]
[BlackElo "2378"]
[Annotator "RC"]
[PlyCount "171"]
[EventDate "2024.01.20"]
[EventType "swiss"]
[EventCountry "IND"]
[SourceTitle "playchess.com"]
[Source "ChessBase"]
[SourceQuality "1"]
[TimeControl "5400+30"]

1. d4 {[%emt 0:00:04]} Nf6 {[%emt 0:00:10]} 2. c4 {[%emt 0:00:06]} e6 {[%emt 0:00:04]} 3. Nc3 {[%emt 0:00:07]} Bb4 {[%emt 0:00:09]} 4. e3 {[%emt 0:00:09]} O-O {[%emt 0:00:07]} 5. Bd2 {[%emt 0:00:07]} c5 {[%emt 0:00:17]} 6. a3 {[%emt 0:00:32]} Bxc3 {[%emt 0:00:15]} 7. Bxc3 {[%emt 0:00:08]} Ne4 {[%emt 0:00:09]} 8. Ne2 {[%emt 0:00:19]} b6 {[%emt 0:00:11]} 9. Qd3 {[%emt 0:01:03]} d5 {[%emt 0:10:12]} 10. cxd5 {[%emt 0:07:12]} exd5 {[%emt 0:00:08]} 11. dxc5 {[%emt 0:00:47]} bxc5 {[%emt 0:00:16]} 12. Rd1 {[%emt 0:02:27]} Bb7 {[%emt 0:00:27]} 13. Ng3 {[%emt 0:10:05]} Nxc3 {[%emt 0:20:10]} 14. Qxc3 {[%emt 0:00:18]} Nd7 {[%emt 0:00:11]} 15. Be2 {[%emt 0:09:27]} Qf6 {[%emt 0:02:14]} 16. Qc2 {[%emt 0:00:59]} Rfd8 {[%emt 0:11:34]} 17. O-O {[%emt 0:00:19]} Rac8 {[%emt 0:00:27]} 18. Rd2 {[%emt 0:03:35]} Ne5 {[%emt 0:10:04]} 19. Qf5 {[%emt 0:06:38]} Qe7 {[%emt 0:09:03]} 20. Rfd1 {[%emt 0:00:30]} g6 {[%emt 0:02:19]} 21. Qf4 {[%emt 0:00:32]} f5 {[%emt 0:01:26]} 22. h4 {[%emt 0:01:58]} h5 {[%emt 0:03:33]} 23. Bf3 {[%emt 0:10:27]} Nxf3+ {[%emt 0:03:49]} 24. gxf3 {[%emt 0:00:13]} Kh7 {[%emt 0:02:56]} 25. Kh2 {[%emt 0:01:57]} Ba8 {[%emt 0:06:24]} 26. Ne2 {[%emt 0:02:46]} Qd6 {[%emt 0:06:21]} 27. Qxd6 {[%emt 0:01:54]} Rxd6 {[%emt 0:00:02]} 28. Kg3 {[%emt 0:00:29]} Rcd8 {[%emt 0:02:16]} 29. Rc1 {[%emt 0:01:08]} Rc8 {[%emt 0:01:30]} 30. Rdc2 {[%emt 0:00:12]} Rdc6 {[%emt 0:01:02]} 31. Nf4 {[%emt 0:01:00]} d4 {[%emt 0:00:39]} 32. Nd3 {[%emt 0:04:54]} c4 {[%emt 0:03:03]} 33. Ne5 {[%emt 0:00:24]} f4+ {[%emt 0:03:52]} 34. exf4 {[%emt 0:03:10]} R6c7 {[%emt 0:01:22]} 35. Rxc4 {[%emt 0:00:38]} Rxc4 {[%emt 0:00:01]} 36. Rxc4 {[%emt 0:00:07]} Rxc4 {[%emt 0:00:05]} 37. Nxc4 {[%emt 0:00:02]} Kg7 {[%emt 0:00:14]} 38. f5 {[%emt 0:06:41]} gxf5 {[%emt 0:01:18]} 39. f4 {[%emt 0:00:47]} Kf6 {[%emt 0:00:17]} 40. f3 {[%emt 0:00:22]} Bc6 {[%emt 0:00:50]} 41. Kf2 {[%emt 0:01:28]} Ke6 {[%emt 0:00:23]} 42. Ne5 {[%emt 0:00:34]} Bb5 {[%emt 0:00:41]} 43. Ke1 {[%emt 0:00:10]} Be8 {[%emt 0:00:56]} 44. b3 {[%emt 0:01:33]} Kd5 {[%emt 0:00:18]} 45. Kd2 {[%emt 0:00:04]} Kc5 {[%emt 0:00:11]} 46. Nd3+ {[%emt 0:02:25]} Kd6 {[%emt 0:00:20]} 47. a4 {[%emt 0:00:46]} Bf7 {[%emt 0:01:12]} 48. b4 {[%emt 0:01:19]} Bb3 {[%emt 0:00:31]} 49. Nc5 {[%emt 0:00:09]} Bc4 {[%emt 0:00:02]} 50. Nb7+ {[%emt 0:03:48]} Kc6 {[%emt 0:00:05]} 51. Na5+ {[%emt 0:04:52]} Kd5 {[%emt 0:00:05]} 52. Kd1 {[%emt 0:00:12]} Ba2 {[%emt 0:01:02]} 53. Kc2 {[%emt 0:00:09]} Bc4 {[%emt 0:00:46]} 54. Kd2 {[%emt 0:02:52]} Ba2 {[%emt 0:00:07]} 55. Nb7 {[%emt 0:02:01]} Kc6 {[%emt 0:00:29]} 56. Nc5 {[%emt 0:00:16]} Kd5 {[%emt 0:00:27]} 57. Nd7 {[%emt 0:02:07]} Ke6 {[%emt 0:01:08]} 58. Nb8 {[%emt 0:00:07]} Kd5 {[%emt 0:00:22]} 59. b5 {[%emt 0:00:17]} Kc5 {[%emt 0:00:37]} 60. Nd7+ {[%emt 0:00:20]} Kd6 {[%emt 0:00:32]} 61. Nf6 {[%emt 0:00:33]} Bf7 {[%emt 0:00:28]} 62. Kd3 {[%emt 0:01:15]} Ke6 {[%emt 0:00:20]} 63. Ne4 {[%emt 0:03:39]} Kd5 {[%emt 0:00:29]} 64. Ng3 {[%emt 0:00:28]} Kc5 {[%emt 0:00:01]} 65. Kd2 {[%emt 0:00:59]} Bg6 {[%emt 0:00:09]} 66. Kc2 {[%emt 0:00:28]} Kc4 {[%emt 0:00:34]} 67. Kd2 {[%emt 0:00:30]} Kc5 {[%emt 0:00:39]} 68. Kd3 {[%emt 0:01:03]} Bf7 {[%emt 0:00:02]} 69. a5 {[%emt 0:00:08]} Kxb5 {[%emt 0:01:10]} 70. Kxd4 {[%emt 0:00:07]} Kxa5 {[%emt 0:00:01]} 71. Nxf5 {[%emt 0:00:18]} Kb4 {[%emt 0:00:29]} 72. Ne7 {[%emt 0:01:47]} a5 {[%emt 0:00:19]} 73. Nc6+ {[%emt 0:00:05]} Kb5 {[%emt 0:00:07]} 74. Ne5 {[%emt 0:00:04]} Be6 {[%emt 0:00:28]} 75. Kc3 {[%emt 0:00:40]} Kc5 {[%emt 0:00:41]} 76. Nd3+ {[%emt 0:00:14]} Kd5 {[%emt 0:00:08]} 77. Nf2 {[%emt 0:00:22]} a4 {[%emt 0:01:39]} 78. Ne4 {[%emt 0:01:26]} Bd7 {[%emt 0:01:24]} 79. Nf6+ {[%emt 0:00:19]} Ke6 {[%emt 0:00:02]} 80. Nxh5 {[%emt 0:00:25]} Kf5 {[%emt 0:00:17]} 81. Kb4 {[%emt 0:00:43]} Bc6 {[%emt 0:00:06]} 82. Ng3+ {[%emt 0:00:16]} Kxf4 {[%emt 0:00:07]} 83. h5 {[%emt 0:00:02]} Kg5 {[%emt 0:00:31]} 84. f4+ {[%emt 0:00:05]} Kh6 {[%emt 0:00:05]} 85. f5 {[%emt 0:00:22]} Kg5 {[%emt 0:00:16]} 86. Ka3 {[%emt 0:00:14]} 1/2-1/2